[Event "*** Titled Tuesday Blitz"]
[Site "Chess.com"]
[Date "2019.06.04"]
[Round "6"]
[White "PawnEatingZombie"]
[Black "vohiraa"]
[Result "1-0"]
[WhiteElo "2145"]
[BlackElo "2294"]
[TimeControl "180+2"]
[EndTime "14:21:05 PDT"]
[Termination "PawnEatingZombie won by resignation"]

1. d4 {[%clk 0:03:01.9]} 1... Nf6 {[%clk 0:03:00.5]} 2. c4 {[%clk 0:03:03.2]}
2... g6 {[%clk 0:03:00.2]} 3. Nc3 {[%clk 0:03:04.5]} 3... Bg7 {[%clk 0:03:01.4]}
4. e4 {[%clk 0:03:06]} 4... d6 {[%clk 0:03:02.7]} 5. Be2 {[%clk 0:03:07.4]} 5...
O-O {[%clk 0:03:04.1]} 6. Be3 {[%clk 0:03:08.9]} 6... e5 {[%clk 0:03:04.3]} 7.
d5 {[%clk 0:03:10.1]} 7... a5 {[%clk 0:03:01.3]} 8. g4 {[%clk 0:03:11.5]} 8...
h5 {[%clk 0:02:59.1]} 9. g5 {[%clk 0:03:11.6]} 9... Nh7 {[%clk 0:02:46.7]} 10.
Qd2 {[%clk 0:03:03.1]} 10... f6 {[%clk 0:02:43.9]} 11. h4 {[%clk 0:03:02.8]}
11... fxg5 {[%clk 0:02:43.7]} 12. hxg5 {[%clk 0:03:04]} 12... Na6 {[%clk
0:02:33.6]} 13. O-O-O {[%clk 0:03:04.7]} 13... Nc5 {[%clk 0:02:32.8]} 14. Nh3
{[%clk 0:03:05.6]} 14... Bd7 {[%clk 0:02:23.6]} 15. Kb1 {[%clk 0:03:04.5]} 15...
Qc8 {[%clk 0:02:22.1]} 16. Ng1 {[%clk 0:02:38.6]} 16... Qe8 {[%clk 0:02:20.2]}
17. f3 {[%clk 0:02:36.1]} 17... Rf7 {[%clk 0:02:10.8]} 18. Nh3 {[%clk
0:02:36.7]} 18... Qe7 {[%clk 0:02:11.6]} 19. Nf2 {[%clk 0:02:27.3]} 19... Raf8
{[%clk 0:02:09.2]} 20. Rdg1 {[%clk 0:02:26.2]} 20... Rf4 {[%clk 0:01:53.6]} 21.
Rg2 {[%clk 0:02:27.1]} 21... Nxg5 {[%clk 0:01:53.6]} 22. Bxc5 {[%clk 0:02:28]}
22... dxc5 {[%clk 0:01:53.6]} 23. d6 {[%clk 0:02:29.5]} 23... Qxd6 {[%clk
0:01:54]} 24. Qxd6 {[%clk 0:02:30.2]} 24... cxd6 {[%clk 0:01:55.3]} 25. Rxg5
{[%clk 0:02:31.5]} 25... Kh7 {[%clk 0:01:53]} 26. Rhg1 {[%clk 0:02:30.4]} 26...
Be8 {[%clk 0:01:53.5]} 27. Nd5 {[%clk 0:02:27.5]} 27... Bh6 {[%clk 0:01:51.9]}
28. R5g2 {[%clk 0:02:14]} 28... R4f7 {[%clk 0:01:44.2]} 29. Nd1 {[%clk 0:02:10]}
29... g5 {[%clk 0:01:40.2]} 30. a3 {[%clk 0:02:08.4]} 30... Rg7 {[%clk
0:01:30.5]} 31. N1e3 {[%clk 0:02:09.1]} 31... Bg6 {[%clk 0:01:31.2]} 32. Nf5
{[%clk 0:01:58.3]} 32... Bxf5 {[%clk 0:01:29.1]} 33. exf5 {[%clk 0:02:00.2]}
33... Rgf7 {[%clk 0:01:24.3]} 34. Bd3 {[%clk 0:02:01]} 34... h4 {[%clk
0:01:18.9]} 35. Be4 {[%clk 0:01:59.7]} 35... Rxf5 {[%clk 0:00:53.2]} 36. Bxf5+
{[%clk 0:01:58.9]} 36... Rxf5 {[%clk 0:00:55.1]} 37. Nc3 {[%clk 0:01:25.7]}
37... Rxf3 {[%clk 0:00:55.3]} 38. Ne4 {[%clk 0:01:26.6]} 38... Rf5 {[%clk
0:00:27]} 39. Nxg5+ {[%clk 0:01:25.6]} 39... Bxg5 {[%clk 0:00:28.9]} 40. Rxg5
{[%clk 0:01:25.7]} 40... Rxg5 {[%clk 0:00:30.6]} 41. Rxg5 {[%clk 0:01:26.2]}
41... Kh6 {[%clk 0:00:32.5]} 42. Rg8 {[%clk 0:01:19.9]} 42... Kh5 {[%clk
0:00:32.9]} 43. Kc2 {[%clk 0:01:19.1]} 43... h3 {[%clk 0:00:33.1]} 44. Kd2
{[%clk 0:00:56.1]} 44... Kh4 {[%clk 0:00:31]} 45. Ke2 {[%clk 0:00:57]} 45... h2
{[%clk 0:00:32.2]} 46. Rh8+ {[%clk 0:00:57.2]} 46... Kg3 {[%clk 0:00:33.1]} 47.
Kf1 {[%clk 0:00:58.4]} 47... e4 {[%clk 0:00:24.3]} 48. Rg8+ {[%clk 0:00:59.5]}
48... Kh3 {[%clk 0:00:25]} 49. Rh8+ {[%clk 0:00:53.2]} 49... Kg3 {[%clk
0:00:25.9]} 50. Ke2 {[%clk 0:00:47.5]} 50... Kg2 {[%clk 0:00:26.1]} 51. Ke3
{[%clk 0:00:48.8]} 51... h1=Q {[%clk 0:00:27.3]} 52. Rxh1 {[%clk 0:00:49.1]}
52... Kxh1 {[%clk 0:00:29.2]} 53. Kxe4 {[%clk 0:00:50.7]} 53... Kg2 {[%clk
0:00:21.8]} 54. Kd5 {[%clk 0:00:52.2]} 54... Kf3 {[%clk 0:00:23.7]} 55. Kxd6
{[%clk 0:00:53.8]} 55... Ke4 {[%clk 0:00:22.8]} 56. Kxc5 {[%clk 0:00:54.7]}
56... Kd3 {[%clk 0:00:24.2]} 57. Kb5 {[%clk 0:00:35.7]} 57... Kc2 {[%clk
0:00:14.7]} 58. c5 {[%clk 0:00:23.2]} 58... Kxb2 {[%clk 0:00:11.7]} 59. a4
{[%clk 0:00:24.5]} 59... Kc3 {[%clk 0:00:07.3]} 60. Kxa5 {[%clk 0:00:25.9]}
60... Kc4 {[%clk 0:00:09]} 61. Kb6 {[%clk 0:00:27.1]} 61... Kb4 {[%clk
0:00:05.4]} 62. a5 {[%clk 0:00:28.4]} 62... Kc4 {[%clk 0:00:03.9]} 63. c6 {[%clk
0:00:26]} 63... bxc6 {[%clk 0:00:03.6]} 64. Kxc6 {[%clk 0:00:25.3]} 64... Kb4
{[%clk 0:00:04.7]} 65. Kb6 {[%clk 0:00:26.5]} 65... Kc4 {[%clk 0:00:05.5]} 66.
a6 {[%clk 0:00:28]} 1-0

[Event "*** Titled Tuesday Blitz"]
[Site "Chess.com"]
[Date "2019.06.04"]
[Round "6"]
[White "ZenBull"]
[Black "Vusatiuk_Vladimir"]
[Result "1/2-1/2"]
[WhiteElo "2096"]
[BlackElo "2203"]
[TimeControl "180+2"]
[EndTime "14:21:24 PDT"]
[Termination "Game drawn by repetition"]

1. Nf3 {[%clk 0:03:01.2]} 1... c5 {[%clk 0:02:58.3]} 2. c4 {[%clk 0:03:02.4]}
2... e6 {[%clk 0:02:57.6]} 3. g3 {[%clk 0:03:00.8]} 3... d5 {[%clk 0:02:58.9]}
4. cxd5 {[%clk 0:03:00.3]} 4... exd5 {[%clk 0:03:00.8]} 5. d4 {[%clk 0:03:01.9]}
5... Nc6 {[%clk 0:03:00.9]} 6. Bg2 {[%clk 0:03:03.1]} 6... Nf6 {[%clk
0:03:02.3]} 7. O-O {[%clk 0:03:04.2]} 7... Be7 {[%clk 0:03:03.9]} 8. Bg5 {[%clk
0:03:05.4]} 8... O-O {[%clk 0:03:04.5]} 9. Nc3 {[%clk 0:03:05.8]} 9... Be6
{[%clk 0:03:04.8]} 10. Rc1 {[%clk 0:02:46.4]} 10... c4 {[%clk 0:03:03.2]} 11.
Ne5 {[%clk 0:02:40.9]} 11... h6 {[%clk 0:02:53.2]} 12. Bxf6 {[%clk 0:02:39.1]}
12... Bxf6 {[%clk 0:02:55.1]} 13. Nxc6 {[%clk 0:02:39.1]} 13... bxc6 {[%clk
0:02:55.4]} 14. e3 {[%clk 0:02:28]} 14... Rb8 {[%clk 0:02:54.5]} 15. Qd2 {[%clk
0:02:19.7]} 15... Qb6 {[%clk 0:02:23.9]} 16. Nd1 {[%clk 0:02:14]} 16... Rfd8
{[%clk 0:02:22.3]} 17. b3 {[%clk 0:02:00.6]} 17... cxb3 {[%clk 0:01:09.8]} 18.
axb3 {[%clk 0:02:02.5]} 18... Bd7 {[%clk 0:01:10.5]} 19. Rb1 {[%clk 0:01:46]}
19... Bf5 {[%clk 0:00:56.4]} 20. Rb2 {[%clk 0:01:29.1]} 20... c5 {[%clk
0:00:54.5]} 21. dxc5 {[%clk 0:01:07.5]} 21... Qxc5 {[%clk 0:00:56.1]} 22. Ra2
{[%clk 0:00:58.8]} 22... Rxb3 {[%clk 0:00:52.4]} 23. Ra5 {[%clk 0:00:47.2]}
23... Rb5 {[%clk 0:00:45.2]} 24. Rxb5 {[%clk 0:00:40.6]} 24... Qxb5 {[%clk
0:00:25.6]} 25. Qa2 {[%clk 0:00:19.3]} 25... Bd3 {[%clk 0:00:23.6]} 26. Re1
{[%clk 0:00:19.8]} 26... Bc4 {[%clk 0:00:24.1]} 27. Qa3 {[%clk 0:00:20.2]} 27...
Qb3 {[%clk 0:00:21.5]} 28. Qxa7 {[%clk 0:00:20.2]} 28... d4 {[%clk 0:00:16.8]}
29. exd4 {[%clk 0:00:19]} 29... Bxd4 {[%clk 0:00:18.2]} 30. Qe7 {[%clk
0:00:19.1]} 30... Qb6 {[%clk 0:00:17.8]} 31. Ne3 {[%clk 0:00:19.3]} 31... Be6
{[%clk 0:00:17.3]} 32. Qa3 {[%clk 0:00:18.9]} 32... Bc5 {[%clk 0:00:13.1]} 33.
Qc1 {[%clk 0:00:19.5]} 33... Rc8 {[%clk 0:00:11.9]} 34. Qb1 {[%clk 0:00:19.6]}
34... Bxe3 {[%clk 0:00:10.9]} 35. fxe3 {[%clk 0:00:21]} 35... Qd6 {[%clk
0:00:10]} 36. Qe4 {[%clk 0:00:19.7]} 36... Qd2 {[%clk 0:00:10.6]} 37. Rf1 {[%clk
0:00:18.6]} 37... Rc2 {[%clk 0:00:08.6]} 38. Qf3 {[%clk 0:00:19.2]} 38... Rc3
{[%clk 0:00:08.4]} 39. Qa8+ {[%clk 0:00:17.8]} 39... Kh7 {[%clk 0:00:08.9]} 40.
Qe4+ {[%clk 0:00:18.7]} 40... g6 {[%clk 0:00:09.6]} 41. Qf4 {[%clk 0:00:16.6]}
41... Qxe3+ {[%clk 0:00:10.4]} 42. Qxe3 {[%clk 0:00:17.4]} 42... Rxe3 {[%clk
0:00:12.3]} 43. Rc1 {[%clk 0:00:15]} 43... h5 {[%clk 0:00:12.2]} 44. Rd1 {[%clk
0:00:15.7]} 44... h4 {[%clk 0:00:11.9]} 45. Kf2 {[%clk 0:00:14.6]} 45... Ra3
{[%clk 0:00:11.6]} 46. Rd2 {[%clk 0:00:15.1]} 46... h3 {[%clk 0:00:11.2]} 47.
Bf3 {[%clk 0:00:16.2]} 47... Ra1 {[%clk 0:00:11.4]} 48. Rd1 {[%clk 0:00:16.2]}
48... Ra2+ {[%clk 0:00:04.8]} 49. Be2 {[%clk 0:00:07.9]} 49... Bg4 {[%clk
0:00:04.5]} 50. Re1 {[%clk 0:00:09.4]} 50... Kh6 {[%clk 0:00:04.3]} 51. Ke3
{[%clk 0:00:10.5]} 51... Bxe2 {[%clk 0:00:04.9]} 52. Rxe2 {[%clk 0:00:12.4]}
52... Rxe2+ {[%clk 0:00:06.2]} 53. Kxe2 {[%clk 0:00:14.3]} 53... Kg5 {[%clk
0:00:07.7]} 54. Kf3 {[%clk 0:00:15.8]} 54... f5 {[%clk 0:00:09]} 55. Ke3 {[%clk
0:00:17.4]} 55... Kg4 {[%clk 0:00:10]} 56. Kf2 {[%clk 0:00:18.6]} 56... g5
{[%clk 0:00:10.8]} 57. Ke2 {[%clk 0:00:19.8]} 57... f4 {[%clk 0:00:10.7]} 58.
gxf4 {[%clk 0:00:21.2]} 58... gxf4 {[%clk 0:00:09.1]} 59. Kf2 {[%clk 0:00:21.6]}
59... f3 {[%clk 0:00:10.3]} 60. Kf1 {[%clk 0:00:21.8]} 60... Kf4 {[%clk
0:00:11.5]} 61. Kf2 {[%clk 0:00:23.2]} 61... Ke4 {[%clk 0:00:12.7]} 62. Kf1
{[%clk 0:00:24.5]} 62... Ke3 {[%clk 0:00:13.6]} 63. Ke1 {[%clk 0:00:26]} 63...
Kf4 {[%clk 0:00:10.6]} 64. Kf2 {[%clk 0:00:26.7]} 64... Ke4 {[%clk 0:00:11.1]}
65. Kf1 {[%clk 0:00:27.9]} 65... Ke5 {[%clk 0:00:11.2]} 66. Kf2 {[%clk 0:00:29]}
66... Kf4 {[%clk 0:00:11.2]} 67. Kf1 {[%clk 0:00:30.1]} 67... Kg4 {[%clk
0:00:11.1]} 68. Kg1 {[%clk 0:00:30]} 68... Kf4 {[%clk 0:00:09.1]} 69. Kf2 {[%clk
0:00:29.1]} 1/2-1/2

[Event "*** Titled Tuesday Blitz"]
[Site "Chess.com"]
[Date "2019.06.04"]
[Round "6"]
[White "Vuk2000"]
[Black "TigranLPetrosyan"]
[Result "0-1"]
[WhiteElo "2730"]
[BlackElo "2854"]
[TimeControl "180+2"]
[EndTime "14:21:25 PDT"]
[Termination "TigranLPetrosyan won by resignation"]

1. d4 {[%clk 0:03:01.9]} 1... d6 {[%clk 0:03:00.3]} 2. e4 {[%clk 0:03:00.4]}
2... Nf6 {[%clk 0:03:00.9]} 3. Nc3 {[%clk 0:03:01.3]} 3... g6 {[%clk 0:03:02.8]}
4. Nf3 {[%clk 0:03:02.4]} 4... Bg7 {[%clk 0:03:02.4]} 5. Be2 {[%clk 0:03:03.8]}
5... c6 {[%clk 0:03:01.6]} 6. a4 {[%clk 0:03:04]} 6... O-O {[%clk 0:03:02.6]} 7.
O-O {[%clk 0:03:04.6]} 7... Nbd7 {[%clk 0:03:01.8]} 8. Be3 {[%clk 0:03:00.8]}
8... e5 {[%clk 0:03:02.8]} 9. h3 {[%clk 0:02:58.5]} 9... exd4 {[%clk 0:03:01]}
10. Bxd4 {[%clk 0:02:57.6]} 10... Re8 {[%clk 0:03:00.7]} 11. Nd2 {[%clk
0:02:55.3]} 11... Nc5 {[%clk 0:02:47.4]} 12. f3 {[%clk 0:02:49.7]} 12... Ne6
{[%clk 0:02:31]} 13. Be3 {[%clk 0:02:30.2]} 13... d5 {[%clk 0:02:31.3]} 14. exd5
{[%clk 0:02:31.1]} 14... Nxd5 {[%clk 0:02:16.2]} 15. Nxd5 {[%clk 0:02:27.4]}
15... cxd5 {[%clk 0:02:16.2]} 16. Bb5 {[%clk 0:01:48.1]} 16... Bd7 {[%clk
0:02:08.7]} 17. Bxd7 {[%clk 0:01:48.5]} 17... Qxd7 {[%clk 0:02:10.6]} 18. c3
{[%clk 0:01:50]} 18... d4 {[%clk 0:02:06.3]} 19. Nb3 {[%clk 0:01:21.7]} 19...
Rad8 {[%clk 0:01:59.4]} 20. Nxd4 {[%clk 0:01:10.5]} 20... Nxd4 {[%clk
0:01:58.7]} 21. Bxd4 {[%clk 0:01:11.8]} 21... Bxd4+ {[%clk 0:01:59.5]} 22. cxd4
{[%clk 0:01:13.1]} 22... Qxd4+ {[%clk 0:01:58]} 23. Qxd4 {[%clk 0:01:12]} 23...
Rxd4 {[%clk 0:01:59.9]} 24. Rf2 {[%clk 0:01:11.6]} 24... a5 {[%clk 0:01:56.2]}
25. Rc2 {[%clk 0:01:11.3]} 25... Re3 {[%clk 0:01:45.7]} 26. Kf2 {[%clk
0:01:04.1]} 26... Rb3 {[%clk 0:01:46.3]} 27. Kg3 {[%clk 0:00:45.9]} 27... h5
{[%clk 0:01:25.9]} 28. Re1 {[%clk 0:00:40.8]} 28... h4+ {[%clk 0:01:26.4]} 29.
Kh2 {[%clk 0:00:41.6]} 29... Rxa4 {[%clk 0:01:24.4]} 30. Re7 {[%clk 0:00:40.6]}
30... Rf4 {[%clk 0:01:20.2]} 31. Kg1 {[%clk 0:00:32.3]} 31... a4 {[%clk
0:01:19.8]} 32. Rd2 {[%clk 0:00:28.4]} 32... Kf8 {[%clk 0:01:18.8]} 33. Rc7
{[%clk 0:00:28.5]} 33... b5 {[%clk 0:01:17.3]} 34. Rb7 {[%clk 0:00:28.4]} 34...
Kg7 {[%clk 0:01:15.3]} 35. Ra7 {[%clk 0:00:27]} 35... g5 {[%clk 0:01:13.1]} 36.
Rb7 {[%clk 0:00:22.7]} 36... Kg6 {[%clk 0:01:13]} 37. Rb6+ {[%clk 0:00:17.9]}
37... f6 {[%clk 0:01:13.4]} 38. Re2 {[%clk 0:00:15]} 38... Rfb4 {[%clk
0:01:12.3]} 39. Ree6 {[%clk 0:00:15.6]} 39... Rf4 {[%clk 0:01:13.9]} 40. Re2
{[%clk 0:00:16.4]} 40... Rf5 {[%clk 0:00:48.7]} 41. Rd2 {[%clk 0:00:17.1]} 41...
Rb4 {[%clk 0:00:46.6]} 42. Rb8 {[%clk 0:00:15.3]} 42... Rc5 {[%clk 0:00:47]} 43.
Rb6 {[%clk 0:00:14.8]} 43... Rc1+ {[%clk 0:00:47.8]} 44. Kh2 {[%clk 0:00:14.1]}
44... Rc7 {[%clk 0:00:42.5]} 45. Rdd6 {[%clk 0:00:10]} 45... Rf7 {[%clk
0:00:43.8]} 46. Rd2 {[%clk 0:00:10.8]} 46... Kf5 {[%clk 0:00:44.3]} 47. Rd5+
{[%clk 0:00:10.9]} 47... Kf4 {[%clk 0:00:43.9]} 48. Rd2 {[%clk 0:00:11.2]} 48...
Ke3 {[%clk 0:00:42.3]} 49. Rbd6 {[%clk 0:00:12]} 49... Rb3 {[%clk 0:00:38.6]}
50. Rc2 {[%clk 0:00:12.7]} 50... f5 {[%clk 0:00:26.4]} 51. Rd5 {[%clk
0:00:10.9]} 51... Kf4 {[%clk 0:00:23.7]} 52. Re2 {[%clk 0:00:06.5]} 52... Rb4
{[%clk 0:00:20.2]} 53. Kg1 {[%clk 0:00:05.9]} 53... Kg3 {[%clk 0:00:18.4]} 54.
Rd3 {[%clk 0:00:06.5]} 54... Rf4 {[%clk 0:00:12.4]} 55. Rc2 {[%clk 0:00:06.3]}
55... b4 {[%clk 0:00:11.8]} 56. Rc6 {[%clk 0:00:06]} 56... Ra7 {[%clk
0:00:10.5]} 57. Rg6 {[%clk 0:00:05.5]} 57... Rc4 {[%clk 0:00:10.2]} 58. Rxg5+
{[%clk 0:00:03.9]} 58... Kf4 {[%clk 0:00:11.8]} 59. Rh5 {[%clk 0:00:04.9]} 59...
Rc1+ {[%clk 0:00:10.8]} 60. Kh2 {[%clk 0:00:06]} 60... a3 {[%clk 0:00:11.6]} 61.
bxa3 {[%clk 0:00:05.6]} 61... bxa3 {[%clk 0:00:13.5]} 62. Rxh4+ {[%clk
0:00:05.7]} 62... Kg5 {[%clk 0:00:14.9]} 63. Rb4 {[%clk 0:00:05.1]} 63... a2
{[%clk 0:00:15.5]} 64. h4+ {[%clk 0:00:05.8]} 64... Kf6 {[%clk 0:00:15.9]} 65.
Rd6+ {[%clk 0:00:06.8]} 65... Ke7 {[%clk 0:00:17.1]} 66. Rg6 {[%clk 0:00:02.5]}
66... a1=Q {[%clk 0:00:17.8]} 0-1

[Event "*** Titled Tuesday Blitz"]
[Site "Chess.com"]
[Date "2019.06.04"]
[Round "6"]
[White "MITerryble"]
[Black "IIIlllII1llIl"]
[Result "1-0"]
[WhiteElo "2785"]
[BlackElo "2763"]
[TimeControl "180+2"]
[EndTime "14:21:30 PDT"]
[Termination "MITerryble won by resignation"]

1. e4 {[%clk 0:02:58.9]} 1... c5 {[%clk 0:03:00.8]} 2. Nf3 {[%clk 0:02:59.9]}
2... d6 {[%clk 0:03:01.9]} 3. Bb5+ {[%clk 0:03:00.7]} 3... Nd7 {[%clk 0:03:02]}
4. d4 {[%clk 0:03:01.6]} 4... Nf6 {[%clk 0:02:57.5]} 5. Nc3 {[%clk 0:03:01.8]}
5... cxd4 {[%clk 0:02:54.8]} 6. Qxd4 {[%clk 0:03:03.7]} 6... e5 {[%clk
0:02:53.9]} 7. Qd3 {[%clk 0:03:04.5]} 7... h6 {[%clk 0:02:53.6]} 8. Be3 {[%clk
0:03:02.9]} 8... Be7 {[%clk 0:02:48.7]} 9. O-O {[%clk 0:02:58.7]} 9... a6 {[%clk
0:01:32.9]} 10. Bc4 {[%clk 0:02:56.2]} 10... b5 {[%clk 0:01:33]} 11. Bd5 {[%clk
0:02:57.3]} 11... Nxd5 {[%clk 0:01:32.7]} 12. Nxd5 {[%clk 0:02:58.9]} 12... Bb7
{[%clk 0:01:33.5]} 13. Rfd1 {[%clk 0:02:51.9]} 13... Bxd5 {[%clk 0:01:19.8]} 14.
Qxd5 {[%clk 0:02:52.1]} 14... O-O {[%clk 0:01:18.9]} 15. a4 {[%clk 0:02:45]}
15... Qb8 {[%clk 0:00:53.4]} 16. axb5 {[%clk 0:02:29.2]} 16... Qxb5 {[%clk
0:00:53.7]} 17. Ra2 {[%clk 0:02:06.9]} 17... Rfc8 {[%clk 0:00:33.6]} 18. b3
{[%clk 0:02:06.2]} 18... Nf6 {[%clk 0:00:27.9]} 19. Qd3 {[%clk 0:02:07.4]} 19...
Qxd3 {[%clk 0:00:27.4]} 20. cxd3 {[%clk 0:02:09.3]} 20... Rc3 {[%clk 0:00:24.6]}
21. b4 {[%clk 0:02:10.3]} 21... Rb3 {[%clk 0:00:24.9]} 22. Ra4 {[%clk
0:02:10.7]} 22... d5 {[%clk 0:00:20.3]} 23. Nxe5 {[%clk 0:02:09.9]} 23... Rxb4
{[%clk 0:00:17.4]} 24. Rxb4 {[%clk 0:02:08.2]} 24... Bxb4 {[%clk 0:00:19.3]} 25.
Nc6 {[%clk 0:02:09.8]} 25... a5 {[%clk 0:00:20.1]} 26. e5 {[%clk 0:02:09.3]}
26... Nd7 {[%clk 0:00:21.1]} 27. Ra1 {[%clk 0:02:06.9]} 27... Rc8 {[%clk
0:00:18.3]} 28. Rc1 {[%clk 0:02:05.4]} 28... Kh7 {[%clk 0:00:08.9]} 29. Kf1
{[%clk 0:02:06.3]} 29... Ra8 {[%clk 0:00:05.7]} 30. f4 {[%clk 0:02:04.7]} 30...
Bf8 {[%clk 0:00:06.3]} 31. f5 {[%clk 0:02:02.5]} 31... a4 {[%clk 0:00:07.7]} 32.
e6 {[%clk 0:02:04]} 32... fxe6 {[%clk 0:00:07.1]} 33. fxe6 {[%clk 0:02:05.9]}
33... Nb8 {[%clk 0:00:07.1]} 34. Na7 {[%clk 0:01:45.1]} 34... Na6 {[%clk
0:00:08.3]} 35. Nc8 {[%clk 0:01:41.4]} 35... Nc5 {[%clk 0:00:05.8]} 36. e7
{[%clk 0:01:35.4]} 36... Bxe7 {[%clk 0:00:05.3]} 37. Nxe7 {[%clk 0:01:35.8]}
37... Nxd3 {[%clk 0:00:05.9]} 38. Ra1 {[%clk 0:01:34.5]} 38... a3 {[%clk
0:00:05.1]} 39. Nxd5 {[%clk 0:01:35.7]} 39... a2 {[%clk 0:00:05.6]} 40. Nc3
{[%clk 0:01:34.9]} 40... Ra3 {[%clk 0:00:05.6]} 41. Bd2 {[%clk 0:01:30.8]} 41...
Nb4 {[%clk 0:00:02.9]} 42. Ke2 {[%clk 0:01:31.2]} 42... g5 {[%clk 0:00:02.1]}
43. Kd1 {[%clk 0:01:25.6]} 43... Kg6 {[%clk 0:00:02.6]} 44. Kc1 {[%clk 0:01:27]}
44... Nd3+ {[%clk 0:00:02.5]} 45. Kc2 {[%clk 0:01:28]} 45... Nb4+ {[%clk
0:00:03.8]} 46. Kb2 {[%clk 0:01:29.4]} 46... Ra8 {[%clk 0:00:05.1]} 47. Kb3
{[%clk 0:01:30.9]} 47... Nd3 {[%clk 0:00:05.7]} 48. Kc2 {[%clk 0:01:28.1]} 48...
Nb4+ {[%clk 0:00:06.5]} 49. Kb3 {[%clk 0:01:25.8]} 49... Nd3 {[%clk 0:00:07.6]}
50. Ne4 {[%clk 0:01:19.2]} 50... Kf5 {[%clk 0:00:07.5]} 51. Ng3+ {[%clk
0:01:18.4]} 51... Kg4 {[%clk 0:00:08.5]} 52. Ne4 {[%clk 0:01:19]} 52... Kf5
{[%clk 0:00:07.3]} 53. Nd6+ {[%clk 0:01:18.5]} 53... Ke6 {[%clk 0:00:06.2]} 54.
Nc4 {[%clk 0:01:19.5]} 54... Nc5+ {[%clk 0:00:07.3]} 55. Kb2 {[%clk 0:01:17.8]}
55... Nd3+ {[%clk 0:00:08.1]} 56. Kc2 {[%clk 0:01:19.1]} 56... Nc5 {[%clk
0:00:07.7]} 57. Bc3 {[%clk 0:01:20.3]} 57... Ne4 {[%clk 0:00:07.6]} 58. Bd4
{[%clk 0:01:18]} 58... Rc8 {[%clk 0:00:05.2]} 59. Kd3 {[%clk 0:01:18.5]} 59...
Nf6 {[%clk 0:00:03.9]} 60. Rxa2 {[%clk 0:01:19.2]} 60... Nd5 {[%clk 0:00:04.5]}
61. Ra6+ {[%clk 0:01:18.7]} 61... Ke7 {[%clk 0:00:05.8]} 62. Ra7+ {[%clk
0:01:07.6]} 62... Ke6 {[%clk 0:00:06.6]} 63. Ne3 {[%clk 0:01:05.2]} 63... Nb4+
{[%clk 0:00:05.6]} 64. Ke4 {[%clk 0:01:06.2]} 64... Nc6 {[%clk 0:00:05.7]} 65.
Ra6 {[%clk 0:01:07.3]} 65... Kd7 {[%clk 0:00:05.3]} 66. Bg7 {[%clk 0:01:06.8]}
66... Re8+ {[%clk 0:00:06.2]} 67. Kf3 {[%clk 0:01:08]} 67... Re6 {[%clk
0:00:06.5]} 68. Ra4 {[%clk 0:01:02.8]} 68... h5 {[%clk 0:00:06]} 69. h3 {[%clk
0:00:59.1]} 69... Re7 {[%clk 0:00:06.7]} 70. Bc3 {[%clk 0:00:58.8]} 70... Rf7+
{[%clk 0:00:06.9]} 71. Ke2 {[%clk 0:01:00.1]} 71... Rf8 {[%clk 0:00:04.6]} 72.
Re4 {[%clk 0:01:00.1]} 72... Ra8 {[%clk 0:00:04.9]} 73. Nd5 {[%clk 0:00:57.9]}
73... Ra2+ {[%clk 0:00:05.2]} 74. Kf3 {[%clk 0:00:59.2]} 74... Rc2 {[%clk
0:00:05.5]} 75. Re3 {[%clk 0:01:00.1]} 75... Kd6 {[%clk 0:00:05.6]} 76. Nf6
{[%clk 0:01:01.5]} 76... h4 {[%clk 0:00:05.2]} 77. Ne4+ {[%clk 0:01:02.7]} 77...
Kd5 {[%clk 0:00:06.3]} 78. Nxg5 {[%clk 0:01:04.6]} 78... Nd8 {[%clk 0:00:06.9]}
79. Rd3+ {[%clk 0:01:03.3]} 79... Kc6 {[%clk 0:00:07]} 80. Rxd8 {[%clk
0:01:04.2]} 80... Rxc3+ {[%clk 0:00:08.2]} 81. Kg4 {[%clk 0:01:05.6]} 81... Rg3+
{[%clk 0:00:09.7]} 82. Kxh4 {[%clk 0:01:06]} 82... Rxg2 {[%clk 0:00:11.1]} 83.
Kh5 {[%clk 0:01:07]} 83... Kc7 {[%clk 0:00:12.3]} 84. Rd1 {[%clk 0:01:07.4]}
84... Kc6 {[%clk 0:00:13.5]} 85. h4 {[%clk 0:01:08.6]} 1-0